lending/lending_fUSD_20240926
["ID","MTS","AMOUNT","RATE_DAILY","PERIOD"]
[339218804,1727361040734,-171.185576,0.00012113,2]
[339218805,1727361040743,-151.175348,0.00012113,2]
[339218806,1727361040752,-7479.704726,0.00012113,2]
[339218807,1727361040765,-1532.851018,0.00012113,2]
[339218808,1727361040775,-244.212284,0.00012113,2]
[339218809,1727361040785,-180.84911,0.00012113,2]
[339218810,1727361040794,-184.073224,0.00012113,2]
[339218811,1727361040803,-4598.553054,0.00012113,2]
[339218812,1727361040812,-161.61428303,0.0001214,2]
[339218813,1727361040822,-164.31038801,0.0001214,2]
[339218814,1727361040831,-640.0,0.00012154,2]
[339218815,1727361040840,-300.0,0.00012178,2]
[339218816,1727361040850,-302.32,0.00012192,2]
[339218817,1727361040859,-163.33,0.00012192,2]
[339218818,1727361040868,-155.4,0.00012192,2]
[339218819,1727361040878,-302.23,0.00012192,2]
[339218820,1727361040887,-855.07,0.00012192,2]
[339218821,1727361040900,-150.0,0.00012192,2]
[339218822,1727361040909,-150.0,0.00012192,2]
[339218823,1727361040918,-150.0,0.00012192,2]
[339218824,1727361040928,-150.0,0.00012192,2]
[339218825,1727361040937,-150.0,0.00012192,2]
[339218826,1727361040946,-5000.0,0.000122,2]
[339218827,1727361040956,-1720.0,0.000122,2]
[339218828,1727361040965,-1209.66313468,0.00012213,2]
[339218829,1727361040975,-171.185576,0.00012265,2]
[339218830,1727361040985,-7479.704726,0.00012265,2]
[339218831,1727361040994,-1532.851018,0.00012265,2]
[339218832,1727361041003,-244.212284,0.00012265,2]
[339218833,1727361041012,-4598.553054,0.00012265,2]
[339218834,1727361041021,-5000.0,0.000123,2]
[339218835,1727361041031,-1549.0,0.000123,2]
[339218836,1727361041040,-4000.0,0.000123,4]
[339218837,1727361041050,-152.0,0.00012303,3]
[339218838,1727361041059,-180.84911,0.00012315,2]
[339218839,1727361041068,-1549.0,0.00012324,2]
[339218840,1727361041077,-448.0,0.00012324,2]
[339218841,1727361041087,-5869.0,0.00012324,2]
[339218842,1727361041096,-247.291,0.00012324,2]
[339218843,1727361041105,-625.0,0.00012324,2]
[339218844,1727361041115,-1147.0,0.00012324,2]
[339218845,1727361041124,-13497.0,0.00012324,2]
[339218846,1727361041134,-1000.0,0.00012329,2]
[339218847,1727361041143,-1000.0,0.00012329,2]
[339218848,1727361041154,-1000.0,0.00012329,2]
[339218849,1727361041164,-1000.0,0.00012329,2]
[339218850,1727361041173,-1000.0,0.00012329,2]
[339218851,1727361041183,-1000.0,0.00012329,2]
[339218852,1727361041191,-1000.0,0.00012329,2]
[339218853,1727361041201,-1000.0,0.00012329,2]
[339218854,1727361041210,-1000.0,0.00012329,2]
[339218855,1727361041219,-1000.0,0.00012329,2]
[339218856,1727361041228,-971.0,0.00012329,2]
[339218857,1727361041237,-1000.0,0.00012329,2]
[339218858,1727361041247,-1000.0,0.00012329,2]
[339218859,1727361041256,-1000.0,0.00012329,2]
[339218860,1727361041266,-1076.0,0.00012329,2]
[339218861,1727361041275,-1014.43,0.00012329,2]
[339218862,1727361041285,-1209.66313468,0.0001236,2]
[339218863,1727361041294,-521.0,0.0001236,2]
[339218864,1727361041303,-521.0,0.00012387,2]
[339218865,1727361041312,-5096.77631747,0.000124,2]
[339218866,1727361041321,-800.0,0.000124,4]
[339218867,1727361041331,-521.0,0.00012415,2]
[339218868,1727361041340,-190.206196,0.00012416,2]
[339218869,1727361041350,-171.185576,0.00012416,2]
[339218870,1727361041359,-7479.704726,0.00012416,2]
[339218871,1727361041368,-1532.851018,0.00012416,2]
[339218872,1727361041378,-244.212284,0.00012416,2]
[339218873,1727361041387,-4598.553054,0.00012416,2]
[339218874,1727361041399,-521.0,0.00012442,2]
[339218875,1727361041409,-181.57,0.00012445,2]
[339218876,1727361041418,-195.66,0.00012445,2]
[339218877,1727361041428,-521.0,0.0001247,2]
[339218878,1727361041437,-521.0,0.00012497,2]
[339218879,1727361041447,-800.0,0.000125,4]
[339218880,1727361041457,-291.05363867,0.000125,2]
[339218881,1727361041466,-1913.0,0.00012504,2]
[339218882,1727361041475,-806.0,0.00012504,2]
[339218883,1727361041485,-3347.0,0.00012504,2]
[339218884,1727361041495,-1081.0,0.00012504,2]
[339218885,1727361041504,-1209.66313468,0.00012507,2]
[339218886,1727361041513,-2500.0,0.00012513,2]
[339218887,1727361041522,-2500.0,0.00012513,2]
[339218888,1727361041532,-180.84911,0.00012517,2]
[339218889,1727361041542,-521.0,0.00012524,2]
[339218890,1727361041552,-521.0,0.00012552,2]
[339218891,1727361041563,-171.185576,0.00012568,2]
[339218892,1727361041572,-7479.704726,0.00012568,2]
[339218893,1727361041581,-1532.851018,0.00012568,2]
[339218894,1727361041590,-244.212284,0.00012568,2]
[339218895,1727361041600,-4598.553054,0.00012568,2]
[339218896,1727361041609,-521.0,0.00012579,2]
[339218897,1727361041618,-800.0,0.000126,4]
[339218898,1727361041628,-521.0,0.00012607,2]
[339218899,1727361041637,-420.0,0.00012608,2]
[339218900,1727361041649,-157.24,0.00012616,2]
[339218901,1727361041658,-150.0,0.0001262,2]
[339218902,1727361041667,-150.0,0.00012624,2]
[339218903,1727361041676,-150.0,0.00012627,2]
[339218904,1727361041689,-150.0,0.00012629,2]
[339218905,1727361041699,-521.0,0.00012634,2]
[339218906,1727361041709,-150.0,0.00012636,2]
[339218907,1727361041719,-151.0,0.00012647,2]
[339218908,1727361041729,-150.0,0.00012648,2]
[339218909,1727361041739,-150.0,0.00012649,2]
[339218910,1727361041752,-150.0,0.00012652,2]
[339218911,1727361041762,-1209.66313468,0.00012653,2]
[339218912,1727361041774,-150.0,0.00012654,2]
[339218913,1727361041788,-150.0,0.00012654,2]
[339218914,1727361041797,-150.0,0.00012659,2]
[339218915,1727361041807,-150.0,0.0001266,2]
[339218916,1727361041816,-521.0,0.00012661,2]
[339218917,1727361041826,-150.0,0.00012672,2]
[339218918,1727361041836,-176.99923762,0.00012675,2]
[339218919,1727361041845,-150.0,0.00012679,2]
[339218920,1727361041854,-150.0,0.00012681,2]
[339218921,1727361041864,-150.0,0.00012685,2]
[339218922,1727361041873,-521.0,0.00012689,2]
[339218923,1727361041882,-150.0,0.00012699,2]
[339218924,1727361041893,-17676.30825061,0.000127,3]
[339218925,1727361041904,-800.0,0.000127,4]
[339218926,1727361041914,-137275.88345148,0.00012706,2]
[339218927,1727361041923,-150.0,0.00012708,2]
[339218928,1727361041934,-150.0,0.0001271,2]
[339218929,1727361041943,-150.0,0.00012711,2]
[339218930,1727361041953,-150.0,0.00012712,2]
[339218931,1727361041962,-150.0,0.00012713,2]
[339218932,1727361041972,-521.0,0.00012716,2]
[339218933,1727361041982,-150.0,0.00012717,2]
[339218934,1727361041991,-180.84911,0.00012719,2]
[339218935,1727361042001,-190.206196,0.00012719,2]
[339218936,1727361042010,-171.185576,0.00012719,2]
[339218937,1727361042020,-7479.704726,0.00012719,2]
[339218938,1727361042029,-1532.851018,0.00012719,2]
[339218939,1727361042039,-244.212284,0.00012719,2]
[339218940,1727361042048,-4598.553054,0.00012719,2]
[339218941,1727361042059,-154.00400739,0.00012727,2]
[339218942,1727361042068,-150.0,0.0001273,2]
[339218943,1727361042077,-150.0,0.00012735,2]
[339218944,1727361042087,-150.0,0.00012735,2]
[339218945,1727361042096,-150.0,0.00012742,2]
[339218946,1727361042105,-150.0,0.00012743,2]
[339218947,1727361042115,-521.0,0.00012744,2]
[339218948,1727361042124,-150.0,0.00012751,2]
[339218949,1727361042133,-150.0,0.00012752,2]
[339218950,1727361042142,-150.0,0.00012754,2]
[339218951,1727361042153,-150.0,0.00012754,2]
[339218952,1727361042162,-150.0,0.00012756,2]
[339218953,1727361042171,-150.0,0.00012758,2]
[339218954,1727361042181,-150.0,0.0001276,2]
[339218955,1727361042190,-150.0,0.00012762,2]
[339218956,1727361042200,-150.0,0.00012763,2]
[339218957,1727361042209,-1500.0,0.00012766,2]
[339218958,1727361042219,-521.0,0.00012771,2]
[339218959,1727361042228,-150.0,0.00012771,2]
[339218960,1727361042238,-150.0,0.00012771,2]
[339218961,1727361042247,-166.66952,0.00012771,2]
[339218962,1727361042256,-1500.0,0.00012771,2]
[339218963,1727361042266,-150.0,0.00012775,2]
[339218964,1727361042276,-156914.01820326,0.0001278,2]
[339218965,1727361042285,-151.0,0.0001278,2]
[339218966,1727361042294,-148453.35517487,0.0001278,2]
[339218967,1727361042303,-150.0,0.00012783,2]
[339218968,1727361042313,-150.0,0.00012783,2]
[339218969,1727361042322,-150.0,0.00012785,2]
[339218970,1727361042331,-150.0,0.00012785,2]
[339218971,1727361042341,-150.0,0.00012789,2]
[339218972,1727361042350,-150.0,0.00012792,2]
[339218973,1727361042359,-150.0,0.00012795,2]
[339218974,1727361042370,-521.0,0.00012798,2]
[339218975,1727361042379,-2822.8849486,0.000128,2]
[339218976,1727361042389,-161.61428303,0.000128,2]
[339218977,1727361042401,-624.9051245,0.000128,5]
[339218978,1727361042411,-500.0,0.000128,2]
[339218979,1727361042420,-500.0,0.000128,2]
[339218980,1727361042430,-500.0,0.000128,2]
[339218981,1727361042440,-500.0,0.000128,2]
[339218982,1727361042449,-500.0,0.000128,2]
[339218983,1727361042459,-501.86,0.000128,2]
[339218984,1727361042468,-942.0,0.000128,4]
[339218985,1727361042478,-164.31038801,0.000128,2]
[339218986,1727361042487,-262.41,0.000128,2]
[339218987,1727361042497,-157.24716191,0.000128,2]
[339218988,1727361042506,-157.24716191,0.000128,2]
[339218989,1727361042515,-157.24716191,0.000128,2]
[339218990,1727361042526,-157.24716191,0.000128,2]
[339218991,1727361042536,-157.24716191,0.000128,2]
[339218992,1727361042545,-157.74,0.000128,2]
[339218993,1727361042555,-1209.66313468,0.000128,2]
[339218994,1727361042565,-181.92288682,0.000128,2]
[339218995,1727361042574,-181.92288682,0.000128,2]
[339218996,1727361042583,-182.42,0.000128,2]
[339218997,1727361042593,-150.0,0.00012804,2]
[339218998,1727361042603,-150.0,0.00012805,2]
[339218999,1727361042612,-150.0,0.00012806,2]
[339219000,1727361042622,-150.0,0.00012808,2]
[339219001,1727361042632,-150.0,0.0001281,2]
[339219002,1727361042641,-150.0,0.00012811,2]
[339219003,1727361042653,-150.0,0.00012812,2]
[339219004,1727361042663,-150.0,0.00012814,2]
[339219005,1727361042672,-150.0,0.00012816,2]
[339219006,1727361042683,-150.0,0.00012817,2]
[339219007,1727361042695,-150.0,0.00012823,2]
[339219009,1727361042705,-150.0,0.00012824,2]
[339219011,1727361042715,-521.0,0.00012826,2]
[339219013,1727361042725,-150.0,0.00012829,2]
[339219015,1727361042734,-1500.0,0.00012832,2]
[339219018,1727361042743,-150.0,0.00012841,2]
[339219019,1727361042752,-1500.0,0.00012841,2]
[339219021,1727361042762,-150.0,0.00012843,2]
[339219023,1727361042773,-150.0,0.00012848,2]
[339219026,1727361042783,-150.0,0.0001285,2]
[339219027,1727361042792,-521.0,0.00012853,2]
[339219029,1727361042803,-150.0,0.00012863,2]
[339219031,1727361042812,-150.0,0.00012863,2]
[339219033,1727361042821,-150.0,0.00012866,2]
[339219035,1727361042831,-150.0,0.00012868,2]
[339219039,1727361042841,-1500.0,0.0001287,2]
[339219042,1727361042850,-113729.35251812,0.0001287,2]
[339219045,1727361042860,-150.0,0.00012872,2]
[339219046,1727361042870,-156.54274924,0.00012873,2]
[339219049,1727361042880,-200.36681539,0.00012873,2]
[339219052,1727361042889,-160.74553845,0.00012873,2]
[339219056,1727361042902,-500.0,0.00012873,2]
[339219059,1727361042915,-333.04364101,0.00012873,2]
[339219062,1727361042924,-500.0,0.00012873,2]
[339219065,1727361042933,-500.46419341,0.00012873,2]
[339219069,1727361042942,-500.74296979,0.00012873,2]
[339219074,1727361042952,-150.0,0.00012877,2]
[339219077,1727361042961,-150.0,0.00012879,2]
[339219079,1727361042971,-150.0,0.00012879,2]
[339219082,1727361042981,-150.0,0.00012879,2]
[339219086,1727361042991,-521.0,0.00012881,2]
[339219089,1727361043000,-1500.0,0.00012883,2]
[339219091,1727361043009,-500.0,0.00012889,2]
[339219095,1727361043019,-500.0,0.00012889,2]
[339219098,1727361043029,-500.0,0.00012889,2]
[339219100,1727361043039,-150.23,0.00012889,2]
[339219103,1727361043048,-150.0,0.00012889,2]
[339219104,1727361043057,-2009.85,0.0001289,2]
[339219107,1727361043066,-150.23,0.0001289,2]
[339219109,1727361043076,-150.23,0.0001289,2]
[339219111,1727361043086,-329.2325318,0.00012894,2]
[339219113,1727361043095,-574.2798089,0.00012894,2]
[339219116,1727361043106,-3828.6609981,0.00012894,2]
[339219118,1727361043115,-500.0,0.00012894,2]
[339219120,1727361043125,-58328.03160346,0.00012897,2]
[339219122,1727361043135,-148483.74663251,0.00012899,3]
[339219124,1727361043146,-151.0,0.00012899,2]
[339219126,1727361043155,-1000.0,0.00012899,2]
[339219128,1727361043165,-500.0,0.00012899,2]
[339219130,1727361043174,-238167.06441,0.000129,2]
[339219131,1727361043183,-1079.28182956,0.000129,2]
[339219134,1727361043193,-2530644.51081897,0.000129,2]
[339219136,1727361043208,-49213.75617473,0.000129,2]
[339219138,1727361043221,-9372.33261329,0.000129,2]
[339219141,1727361043232,-566.68095235,0.000129,2]
[339219143,1727361043247,-396.3219215,0.000129,2]
[339219145,1727361043258,-1416.22373913,0.000129,2]
[339219148,1727361043270,-500.0,0.000129,2]
[339219150,1727361043281,-3537.73874138,0.000129,2]
[339219152,1727361043297,-650.0,0.000129,2]
[339219155,1727361043308,-2796.35797619,0.000129,2]
[339219175,1727361043483,-1002.3584118,0.000129,2]
[339219179,1727361043495,-6634.24743805,0.000129,2]
[339219181,1727361043506,-78079.80296049,0.000129,2]
[339219195,1727361043696,-495.55389865,0.000129,2]
[339219196,1727361043721,-1206.83348292,0.000129,2]
[339219197,1727361043745,-3157.154,0.000129,2]
[339219198,1727361043865,-21641.43392361,0.000129,2]
[339219199,1727361043876,-1275.2531778,0.000129,2]
[339219201,1727361043887,-1748.56626615,0.000129,2]
[339219203,1727361043902,-1467.8621135,0.000129,2]
[339219226,1727361044105,-150.0,0.00012845,2]
[339219228,1727361044114,-500.0,0.00012873,2]
[339219229,1727361044123,-150.0,0.00012899,2]
[339219231,1727361044133,-5067.91004832,0.000129,2]
[339219235,1727361044158,-7365.16641705,0.000129,2]
[339219237,1727361044169,-1734.33126375,0.000129,2]
[339219239,1727361044180,-25806.5031743,0.000129,2]
[339219241,1727361044195,-589.17,0.000129,2]
[339219244,1727361044205,-6723.34743954,0.000129,2]
[339219247,1727361044223,-254864.10255439,0.000129,2]
[339219249,1727361044234,-11631.41360967,0.000129,2]
[339219251,1727361044245,-7358.76420815,0.000129,2]
[339219253,1727361044256,-1535.85323252,0.000129,2]
[339219360,1727361046074,-423.0,0.00012055,2]
[339219361,1727361046083,-38619.00300001,0.000129,2]
[339219362,1727361046094,-6494.9,0.000129,2]
[339219363,1727361046105,-12934.64864482,0.000129,2]
[339219364,1727361046116,-27116.73287553,0.000129,2]
[339219365,1727361046127,-2829687.44948969,0.000129,2]
[339219366,1727361046215,-3240.25,0.000129,2]
[339219367,1727361046227,-1310.50423404,0.000129,2]
[339219368,1727361046238,-7307.32161423,0.000129,2]
[339219369,1727361046249,-18961.73512205,0.000129,2]
[339219370,1727361046259,-355.99679615,0.000129,2]
[339219371,1727361046294,-308.1,0.000129,2]
[339219372,1727361046305,-663.1,0.000129,2]
[339219373,1727361046316,-601.71250014,0.000129,2]
[339219374,1727361046331,-8425.78040735,0.000129,2]
[339219375,1727361046362,-330.02776913,0.000129,2]
[339219376,1727361046374,-1207.07533072,0.000129,2]
[339219442,1727361155431,150.0,0.0001389,30]
[339219443,1727361179602,213.48,9.869e-05,2]
[339219444,1727361356539,198.28,0.00010959,2]
[339219445,1727361647123,152.28,0.00013918,30]
[339219446,1727361725616,150.0,0.0001389,30]
[339219447,1727361763564,7144.84200267,0.00011216,10]
[339219448,1727361844934,202.8,9.967e-05,2]
[339219449,1727361848131,190.26,0.00011093,2]
[339219450,1727361904646,179.44,0.00010959,2]
[339219505,1727361998901,250.0,0.00011051,2]
[339219506,1727362004876,-604.67336943,0.00014274,30]
[339219531,1727362071078,500.0,0.00010438,2]
[339219532,1727362084732,500.0,0.00010438,2]
[339219533,1727362084822,500.0,0.00010438,2]
[339219534,1727362084850,500.0,8.22e-05,2]
[339219535,1727362092792,500.0,0.0001096,2]
[339219536,1727362182409,7697.5419,0.00011028,2]
[339219537,1727362189285,250.0,0.00011088,2]
[339219538,1727362189356,592.03,0.00011088,2]
[339219539,1727362207321,183.72,0.000111,2]
[339219540,1727362212346,500.0,0.00014274,30]
[339219547,1727362232211,-500.0,0.00011109,3]
[339219548,1727362232221,-334.98638783,0.00011123,2]
[339219549,1727362232233,-857.72361217,0.00011123,2]
[339219550,1727362232242,-300.0,0.00011127,2]
[339219551,1727362232251,-23900.0,0.00011128,2]
[339219552,1727362232261,-6945.92,0.00011167,2]
[339219553,1727362232272,-1000.0,0.00011216,2]
[339219554,1727362232281,-244.35,0.00011216,2]
[339219555,1727362232291,-250.0,0.00011231,2]
[339219556,1727362232300,-150.0,0.0001126,2]
[339219557,1727362232309,-150.0,0.00011328,2]
[339219558,1727362232318,-499.99,0.00011328,2]
[339219559,1727362232327,-3428.01,0.00011328,2]
[339219560,1727362232337,-1214.00638783,0.00011329,2]
[339219561,1727362232399,-6500.0,0.00011329,2]
[339219562,1727362232410,-650.0,0.00011329,2]
[339219563,1727362232422,-1635.98361217,0.00011329,2]
[339219564,1727362232431,-8964.92632348,0.00011329,2]
[339219565,1727362232443,-30879.86367652,0.00011329,2]
[339219566,1727362232452,-169.41,0.00011329,2]
[339219567,1727362232461,-168.7,0.00011652,2]
[339219569,1727362232470,-166.07,0.00011731,2]
[339219571,1727362232480,-423.0,0.000118,2]
[339219572,1727362232489,-423.0,0.000118,2]
[339219574,1727362232499,-244.59,0.00011965,2]
[339219575,1727362232508,-3056.0212,0.00012013,2]
[339219576,1727362232518,-214.401,0.00012013,2]
[339219577,1727362232533,-423.0,0.00012041,2]
[339219578,1727362232542,-423.0,0.00012055,2]
[339219580,1727362232552,-423.0,0.00012055,2]
[339219582,1727362232561,-423.0,0.00012055,2]
[339219583,1727362232570,-423.0,0.00012055,2]
[339219585,1727362232579,-423.0,0.00012055,2]
[339219587,1727362232588,-423.0,0.00012055,2]
[339219589,1727362232597,-232.2,0.00012055,2]
[339219591,1727362232607,-1244.28,0.00012055,2]
[339219592,1727362232616,-423.0,0.00012055,2]
[339219594,1727362232625,-423.0,0.00012055,2]
[339219596,1727362232634,-423.0,0.00012055,2]
[339219598,1727362232643,-423.0,0.00012055,2]
[339219599,1727362232652,-855.03,0.00012055,2]
[339219601,1727362232661,-160.25,0.00012082,2]
[339219603,1727362232671,-23830.31703739,0.00012103,2]
[339219604,1727362232680,-158.15908,0.00012113,2]
[339219606,1727362232689,-6131.404074,0.00012113,2]
[339219608,1727362232698,-183.159213,0.00012113,2]
[339219610,1727362232707,-164.280999,0.00012113,2]
[339219612,1727362232717,-158.15908,0.00012113,2]
[339219613,1727362232726,-11219.55709,0.00012113,2]
[339219615,1727362232735,-164.280998,0.00012113,2]
[339219617,1727362232744,-183.159214,0.00012113,2]
[339219619,1727362232753,-3065.702037,0.00012113,2]
[339219620,1727362232762,-1104.745946,0.00012113,2]
[339219622,1727362232774,-497.690535,0.00012113,2]
[339219624,1727362232784,-662.909464,0.00012113,2]
[339219626,1727362232793,-184.073224,0.00012113,2]
[339219628,1727362232802,-2500.0,0.00012139,2]
[339219630,1727362232812,-423.0,0.00012141,2]
[339219632,1727362232821,-500.0,0.00012142,2]
[339219633,1727362232830,-200.0,0.00012142,2]
[339219635,1727362232840,-518.4462,0.00012165,2]
[339219637,1727362232849,-488.1035,0.0001217,2]
[339219639,1727362232859,-690.0699,0.0001217,2]
[339219640,1727362232868,-19414.9342,0.0001217,2]
[339219642,1727362232878,-1723.6356,0.0001217,2]
[339219644,1727362232888,-7228.1389,0.0001217,2]
[339219646,1727362232898,-168.02374186,0.0001217,2]
[339219647,1727362232907,-300.0,0.00012192,2]
[339219648,1727362232917,-150.0,0.00012192,2]
[339219649,1727362232926,-428.4,0.00012192,2]
[339219650,1727362232935,-150.0,0.00012192,2]
[339219651,1727362232944,-150.0,0.00012192,2]
[339219652,1727362232954,-150.0,0.00012192,2]
[339219653,1727362232963,-358.21,0.00012192,2]
[339219654,1727362232972,-302.91,0.00012192,2]
[339219655,1727362232981,-150.0,0.00012192,2]
[339219656,1727362232991,-150.0,0.00012192,2]
[339219657,1727362233000,-358.21,0.00012192,2]
[339219658,1727362233009,-428.4,0.00012192,2]
[339219659,1727362233192,-150.0,0.00012192,2]
[339219660,1727362233203,-150.0,0.00012192,2]
[339219661,1727362233213,-358.21,0.00012192,2]
[339219662,1727362233222,-428.4,0.00012192,2]
[339219663,1727362233231,-150.0,0.00012192,2]
[339219664,1727362233240,-428.4,0.00012192,2]
[339219665,1727362233250,-150.0,0.00012192,2]
[339219666,1727362233259,-358.21,0.00012192,2]
[339219667,1727362233269,-150.0,0.00012192,2]
[339219668,1727362233280,-150.0,0.00012192,2]
[339219669,1727362233290,-150.0,0.00012192,2]
[339219670,1727362233301,-16.22106459,0.00012192,2]
[339219671,1727362233313,-412.17893541,0.00012192,2]
[339219672,1727362233322,-429.33,0.00012192,2]
[339219673,1727362233332,-423.0,0.000122,2]
[339219674,1727362233341,-423.0,0.000122,2]
[339219675,1727362233350,-423.0,0.000122,2]
[339219676,1727362233360,-423.0,0.000122,2]
[339219677,1727362233370,-423.0,0.000122,2]
[339219678,1727362233379,-420.0,0.00012226,2]
[339219679,1727362233388,-202.8,0.00012231,2]
[339219680,1727362233399,-10515.46319509,0.00012239,2]
[339219681,1727362233414,-4743.02680491,0.00012239,2]
[339219682,1727362233423,-6131.404074,0.00012265,2]
[339219683,1727362233432,-183.159213,0.00012265,2]
[339219684,1727362233442,-6415.71004947,0.00012265,2]
[339219685,1727362233453,-457.01764906,0.00012265,2]
[339219686,1727362233465,-348.26422483,0.00012265,2]
[339219687,1727362233476,-3998.56516664,0.00012265,2]
[339219688,1727362233486,-183.159214,0.00012265,2]
[339219689,1727362233496,-3065.702037,0.00012265,2]
[339219690,1727362233506,-1104.745946,0.00012265,2]
[339219691,1727362233516,-497.690535,0.00012265,2]
[339219692,1727362233529,-662.909464,0.00012265,2]
[339219693,1727362233538,-103176.3955,0.0001227,2]
[339219694,1727362233547,-162.4233,0.0001227,2]
[339219695,1727362233557,-423.0,0.000123,2]
[339219696,1727362233566,-423.0,0.000123,2]
[339219697,1727362233575,-423.0,0.000123,2]
[339219698,1727362233584,-152.0,0.00012303,3]
[339219699,1727362233594,-633.82,0.00012329,2]
[339219700,1727362233603,-180.0,0.00012349,2]
[339219701,1727362233613,-6131.404074,0.00012416,2]
[339219702,1727362233622,-164.280999,0.00012416,2]
[339219703,1727362233632,-183.159213,0.00012416,2]
[339219704,1727362233641,-11219.55709,0.00012416,2]
[339219705,1727362233651,-164.280998,0.00012416,2]
[339219706,1727362233660,-183.159214,0.00012416,2]
[339219707,1727362233669,-3065.702037,0.00012416,2]
[339219708,1727362233678,-1104.745946,0.00012416,2]
[339219709,1727362233688,-497.690535,0.00012416,2]
[339219710,1727362233698,-662.909464,0.00012416,2]
[339219711,1727362233708,-423.0,0.000125,2]
[339219712,1727362233717,-940.165,0.00012504,2]
[339219713,1727362233726,-240.711,0.00012504,2]
[339219714,1727362233736,-448.0,0.00012504,2]
[339219715,1727362233746,-150.0,0.00012504,2]
[339219716,1727362233756,-257.596,0.00012504,2]
[339219717,1727362233765,-150.0,0.00012504,2]
[339219718,1727362233779,-6131.404074,0.00012568,2]
[339219719,1727362233789,-183.159213,0.00012568,2]
[339219720,1727362233799,-11219.55709,0.00012568,2]
[339219721,1727362233810,-183.159214,0.00012568,2]
[339219722,1727362233819,-3065.702037,0.00012568,2]
[339219723,1727362233829,-1104.745946,0.00012568,2]
[339219724,1727362233839,-497.690535,0.00012568,2]
[339219725,1727362233848,-662.909464,0.00012568,2]
[339219726,1727362233858,-1000.0,0.00012618,2]
[339219727,1727362233868,-244.35,0.00012618,2]
[339219728,1727362233877,-301.19013755,0.00012619,2]
[339219729,1727362233887,-9544.3016,0.00012619,2]
[339219730,1727362233896,-213.1901,0.00012619,2]
[339219731,1727362233906,-480.76,0.00012685,2]
[339219732,1727362233915,-173.519,0.00012685,2]
[339219733,1727362233924,-1924.6496,0.000127,2]
[339219734,1727362233935,-196.6856,0.000127,2]
[339219735,1727362233944,-213.3128,0.000127,2]
[339219736,1727362233953,-252.5363,0.000127,2]
[339219737,1727362233962,-158.15908,0.00012719,2]
[339219738,1727362233973,-6131.404074,0.00012719,2]
[339219739,1727362233982,-164.280999,0.00012719,2]
[339219740,1727362233991,-183.159213,0.00012719,2]
[339219741,1727362234001,-11219.55709,0.00012719,2]
[339219742,1727362234010,-164.280998,0.00012719,2]
[339219743,1727362234020,-183.159214,0.00012719,2]
[339219744,1727362234032,-3065.702037,0.00012719,2]
[339219745,1727362234041,-1104.745946,0.00012719,2]
[339219746,1727362234051,-497.690535,0.00012719,2]
[339219747,1727362234066,-662.909464,0.00012719,2]
[339219748,1727362234076,-175.5238322,0.0001273,2]
[339219749,1727362234087,-150.0,0.00012732,2]
[339219750,1727362234097,-330.86882418,0.00012759,2]
[339219751,1727362234107,-150.0,0.0001276,2]
[339219752,1727362234116,-1000.0,0.00012773,2]
[339219753,1727362234126,-239.7798592,0.00012779,2]
[339219754,1727362234137,-193.43531537,0.00012783,2]